bitfinex/quotes_ETHUSD_20240821
["timestamp","ask_amount","ask_price","bid_price","bid_amount"]
[1724236096851,3.86504,2587.3,2586.8,0.16225211]
[1724236097223,3.86504,2587.3,2586.7,2.85291]
[1724236097423,3.86504,2587.3,2586.9,0.1622373]
[1724236097617,3.86504,2587.3,2586.8,0.16225211]
[1724236097837,3.86504,2587.3,2587.0,0.16222249]
[1724236098053,3.86504,2587.3,2586.9,0.1622373]
[1724236098252,3.86504,2587.3,2587.1,0.16220768]
[1724236098449,4.93302186,2587.3,2587.0,0.16222249]
[1724236098654,4.93302186,2587.3,2586.7,2.3771]
[1724236098825,3.86504,2587.3,2587.1,0.16220768]
[1724236099029,3.86504,2587.3,2586.7,2.3771]
[1724236099572,3.86504,2587.3,2586.8,0.16225211]
[1724236099724,7.73015,2587.3,2586.7,2.3771]
[1724236099907,7.73015,2587.3,2586.8,0.16225211]
[1724236100239,3.86504,2587.3,2586.7,2.3771]
[1724236100462,7.73016,2587.3,2586.9,0.1622373]
[1724236100614,8.79815186,2587.3,2586.8,0.16225211]
[1724236100818,4.93303186,2587.3,2587.0,0.16222249]
[1724236101014,4.93303186,2587.3,2586.9,0.1622373]
[1724236101266,4.93303186,2587.3,2587.1,0.16220768]
[1724236101434,4.93303186,2587.3,2587.0,0.16222249]
[1724236101767,3.86504,2587.3,2587.1,0.16215158]
[1724236101931,3.86504,2587.3,2586.7,2.3771]
[1724236102136,3.86504,2587.3,2586.8,0.16219601]
[1724236102336,3.86504,2587.3,2586.7,2.3771]
[1724236102559,3.86504,2587.3,2586.8,0.16219601]
[1724236102735,7.73015,2587.3,2586.7,2.3771]
[1724236102936,7.73015,2587.3,2586.8,0.16219601]
[1724236103162,8.96626986,2587.3,2586.7,2.3771]
[1724236103371,8.96626986,2587.3,2586.8,0.16219601]
[1724236103666,8.96626986,2587.3,2586.7,2.3771]
[1724236103866,8.96626986,2587.3,2586.9,0.1621812]
[1724236104044,0.89662699,2587.2,2586.8,0.16219601]
[1724236104253,0.89662699,2587.2,2587.0,0.16216639]
[1724236104423,0.89662699,2587.2,2586.9,0.1621812]
[1724236104619,4.76180699,2587.2,2587.1,0.16215158]
[1724236104821,7.06340699,2587.2,2587.0,0.16216639]
[1724236105026,1.15439669,2587.1,2586.7,2.3771]
[1724236105226,7.06340699,2587.2,2587.1,0.16208747]
[1724236105441,7.06340699,2587.2,2586.7,2.3771]
[1724236105844,7.06340699,2587.2,2586.8,0.1621319]
[1724236106168,7.06340699,2587.2,2586.7,2.3771]
[1724236106323,7.06340699,2587.2,2586.8,0.1621319]
[1724236106519,7.06340699,2587.2,2586.7,2.3771]
[1724236106734,7.06340699,2587.2,2586.8,0.1621319]
[1724236106966,7.06340699,2587.2,2586.7,2.3771]
[1724236107166,7.06340699,2587.2,2586.8,0.1621319]
[1724236107377,7.06340699,2587.2,2586.7,2.3771]
[1724236107667,7.06340699,2587.2,2586.8,0.1621319]
[1724236108071,7.06340699,2587.2,2586.7,2.3771]
[1724236108242,7.06340699,2587.2,2586.9,0.16211709]
[1724236108567,1.2609447,2587.1,2587.0,0.16210228]
[1724236108874,1.2609447,2587.1,2586.7,2.3771]
[1724236109071,6.16678,2587.2,2587.0,0.16210228]
[1724236109278,9.41118,2587.3,2586.7,2.3771]
[1724236109572,3.86504,2587.3,2586.7,2.3771]
[1724236109782,3.86518,2587.2,2586.8,0.1621319]
[1724236109934,3.86518,2587.2,2586.7,2.3771]
[1724236110127,3.86518,2587.2,2586.8,0.1621319]
[1724236110327,4.879882,2587.2,2586.7,2.3771]
[1724236110682,4.879882,2587.2,2586.8,0.1621319]
[1724236111027,4.879882,2587.2,2586.7,2.3771]
[1724236111223,4.879882,2587.2,2586.9,0.16211709]
[1724236111422,4.879882,2587.2,2586.7,2.3771]
[1724236111423,4.879882,2587.2,2586.8,0.1621319]
[1724236111699,1.0425922,2587.1,2587.0,0.16210228]
[1724236111845,1.0425922,2587.1,2586.9,0.16211709]
[1724236112064,1.0425922,2587.1,2587.0,0.16210228]
[1724236112432,1.0425922,2587.1,2586.7,2.3771]
[1724236112629,4.879882,2587.2,2587.0,0.16210228]
[1724236112856,4.879882,2587.2,2586.7,2.3771]
[1724236113044,4.879882,2587.2,2587.1,0.16208747]
[1724236113243,4.879882,2587.2,2586.7,2.3771]
[1724236113657,4.879882,2587.2,2586.8,0.1621319]
[1724236113858,1.0425922,2587.1,2586.8,0.1621319]
[1724236114078,1.0425922,2587.1,2586.7,2.3771]
[1724236114236,4.879882,2587.2,2586.9,0.16211709]
[1724236114435,4.879882,2587.2,2586.8,0.1621319]
[1724236114638,4.879882,2587.2,2587.0,0.16210228]
[1724236114946,4.879882,2587.2,2587.1,0.16208747]
[1724236115385,4.879882,2587.2,2586.7,2.3771]
[1724236115604,4.879882,2587.2,2586.8,0.1621239]
[1724236115809,1.0425922,2587.1,2586.7,2.3771]
[1724236116114,4.879882,2587.2,2586.8,0.1621239]
[1724236116611,4.879882,2587.2,2586.9,0.16210909]
[1724236116761,4.879882,2587.2,2586.7,2.3771]
[1724236116958,4.879882,2587.2,2586.8,0.1621239]
[1724236117178,3.86518,2587.2,2586.7,2.3771]
[1724236117398,3.86518,2587.2,2586.8,0.1621239]
[1724236117603,3.86518,2587.2,2586.7,2.3771]
[1724236117808,3.86518,2587.2,2586.8,0.1621239]
[1724236118104,3.86518,2587.2,2586.7,2.3771]
[1724236118260,3.86518,2587.2,2586.9,0.16210909]
[1724236118466,3.86518,2587.2,2586.8,0.1621239]
[1724236118661,3.86518,2587.2,2587.0,0.16209428]
[1724236118857,3.86518,2587.2,2586.7,2.3771]
[1724236118858,5.047969,2587.2,2586.9,0.16210909]
[1724236119058,5.047969,2587.2,2587.1,0.16207947]
[1724236119300,3.86518,2587.2,2587.0,0.16209428]
[1724236119504,3.86518,2587.2,2586.7,2.3771]
[1724236119710,3.86518,2587.2,2587.1,0.16207947]
[1724236120005,3.86518,2587.2,2586.7,2.3771]
[1724236120208,7.73045,2587.2,2586.8,0.1621239]
[1724236120362,9.51938315,2587.2,2586.7,2.3771]
[1724236120562,9.51938315,2587.2,2586.8,0.1621239]
[1724236120792,5.65411315,2587.2,2586.7,2.3771]
[1724236121112,5.65411315,2587.2,2586.8,0.1621239]
[1724236121603,5.65411315,2587.2,2586.9,0.16210909]
[1724236121838,5.65411315,2587.2,2586.7,2.3771]
[1724236121982,4.47132415,2587.2,2587.0,0.16209428]
[1724236122189,4.47132415,2587.2,2586.7,2.3771]
[1724236122361,4.47132415,2587.2,2586.8,0.1621239]
[1724236122664,4.47132415,2587.2,2586.7,2.3771]
[1724236123007,4.47132415,2587.2,2586.8,0.1621239]
[1724236123208,5.71473557,2587.2,2586.7,2.3771]
[1724236123410,5.71473557,2587.2,2586.8,0.1621239]
[1724236123561,5.71473557,2587.2,2586.7,2.3771]
[1724236123767,5.71473557,2587.2,2586.8,0.1621239]
[1724236123959,5.71473557,2587.2,2586.7,2.3771]
[1724236124274,5.71473557,2587.2,2586.8,0.1621239]
[1724236124676,5.71473557,2587.2,2586.7,2.3771]
[1724236124881,5.71473557,2587.2,2586.9,0.16210909]
[1724236125081,0.73957356,2587.1,2586.8,0.1621239]
[1724236125279,5.71473557,2587.2,2587.0,0.16207824]
[1724236125520,5.71473557,2587.2,2586.9,0.16209306]
[1724236125664,5.71473557,2587.2,2587.1,0.16206343]
[1724236126009,5.71473557,2587.2,2586.7,2.3771]
[1724236126170,5.71473557,2587.2,2586.8,0.16210787]
[1724236126171,4.47132415,2587.2,2586.8,0.16210787]
[1724236126372,4.47132415,2587.2,2586.7,2.3771]
[1724236126592,4.47132415,2587.2,2586.8,0.16210787]
[1724236126804,4.47132415,2587.2,2586.7,2.3771]
[1724236127116,8.33661415,2587.2,2586.8,0.16210787]
[1724236127418,1.00176142,2587.1,2586.5,4.8393]
[1724236127621,4.47132415,2587.2,2586.9,0.16209306]
[1724236127905,4.47132415,2587.2,2586.5,4.8393]
[1724236128127,4.47132415,2587.2,2587.0,0.16207824]
[1724236128430,4.47132415,2587.2,2587.1,0.16206343]
[1724236128589,5.71473557,2587.2,2587.1,0.16206343]
[1724236128795,5.71473557,2587.2,2586.5,4.8393]
[1724236129000,4.47132415,2587.2,2586.6,0.1621375]
[1724236129422,8.33662415,2587.2,2586.6,0.1621375]
[1724236129808,4.47132415,2587.2,2586.6,0.1621375]
[1724236130013,8.33659415,2587.2,2586.6,0.1621375]
[1724236130807,4.47132415,2587.2,2586.6,0.1621375]
[1724236131125,4.47132415,2587.2,2586.6,0.66228125]
[1724236135138,4.47132415,2587.2,2586.7,2.2907]
[1724236135492,4.47132415,2587.2,2586.8,0.16210787]
[1724236135844,3.86518,2587.2,2586.7,2.2907]
[1724236135985,3.86518,2587.2,2586.9,0.16209306]
[1724236136183,3.86518,2587.2,2586.7,2.2907]
[1724236136415,3.86518,2587.2,2586.8,0.16210787]
[1724236136621,3.86518,2587.2,2586.7,2.2907]
[1724236136933,3.86518,2587.2,2586.8,0.16210787]
[1724236137293,3.86518,2587.2,2586.7,2.2907]
[1724236137533,3.86518,2587.2,2586.9,0.16209306]
[1724236137837,3.86518,2587.2,2587.0,0.16207824]
[1724236138342,3.86518,2587.2,2586.7,2.2907]
[1724236138517,3.86518,2587.2,2587.1,0.16206343]
[1724236138709,4.879875,2587.2,2586.7,2.2907]
[1724236138926,3.86518,2587.2,2587.1,0.16206343]
[1724236139647,3.86518,2587.2,2586.7,2.2907]
[1724236139807,3.86518,2587.2,2587.1,0.16206343]
[1724236140140,3.86518,2587.2,2586.7,2.2907]
[1724236140295,3.86518,2587.2,2587.1,0.16200733]
[1724236140648,4.879875,2587.2,2587.1,0.16200733]
[1724236140850,6.92759507,2587.6,2587.1,0.16200733]
[1724236141149,5.8029338,2587.7,2587.1,2.381]
[1724236141297,5.8029338,2587.7,2587.2,2.5313]
[1724236141637,5.8029338,2587.7,2587.2,2.69324444]
[1724236142134,8.0808338,2587.7,2587.2,2.69324444]
[1724236142342,11.9452638,2587.7,2587.2,2.45514444]
[1724236143195,11.9452638,2587.7,2587.3,0.16192963]
[1724236143402,11.9452638,2587.7,2587.2,2.2932]
[1724236143906,11.9452638,2587.7,2587.1,0.7]
[1724236144108,9.44346018,2587.7,2587.1,0.7]
[1724236144324,9.44346018,2587.7,2587.2,0.16166402]
[1724236144325,3.86486,2587.5,2587.2,0.16166402]
[1724236144762,3.86486,2587.5,2586.8,2.9726]
[1724236145051,11.9453538,2587.7,2586.9,2.43434049]
[1724236145198,11.9453538,2587.7,2587.0,0.31343405]
[1724236145410,11.9453538,2587.7,2587.1,0.16171087]
[1724236146717,3.86459,2587.6,2587.1,0.16171087]
[1724236148036,3.86477,2587.5,2587.1,0.16171087]
[1724236148902,3.86477,2587.5,2587.2,0.16169606]
[1724236149371,3.86477,2587.5,2586.9,3.9536]
[1724236151067,3.86477,2587.5,2587.0,0.15636433]
[1724236152724,17.4908438,2587.7,2587.0,0.15636433]
[1724236153192,13.6262738,2587.7,2587.0,0.15636433]
[1724236153348,11.9452738,2587.7,2587.1,2.3711]
[1724236153547,11.9452738,2587.7,2587.2,0.15397331]
[1724236153774,11.9452738,2587.7,2587.1,2.83848243]
[1724236154073,15.8098038,2587.7,2587.2,0.15397331]
[1724236154483,15.8098038,2587.7,2587.1,2.83848243]
[1724236154832,15.8098038,2587.7,2587.2,0.15371691]
[1724236155034,15.8098038,2587.7,2587.1,2.83848243]
[1724236155274,11.9452738,2587.7,2587.2,0.15371691]
[1724236155650,9.6673738,2587.7,2587.1,4.51948243]
[1724236155851,9.6673738,2587.7,2587.2,0.15371691]
[1724236156363,9.6673738,2587.7,2587.1,4.51948243]
[1724236156563,9.6673738,2587.7,2587.2,0.15371691]
[1724236156736,9.6673738,2587.7,2587.1,4.0521]
[1724236157079,9.6673738,2587.7,2587.2,0.15371691]
[1724236157450,9.6673738,2587.7,2587.1,4.0521]
[1724236157451,13.5318938,2587.7,2587.1,4.0521]
[1724236157799,9.6673738,2587.7,2587.2,0.15371691]
[1724236157972,9.6673738,2587.7,2587.1,4.0521]
[1724236158286,13.5319038,2587.7,2587.2,0.15371691]
[1724236158581,13.5319038,2587.7,2587.1,4.0521]
[1724236158768,13.5319038,2587.7,2587.2,0.15371691]
[1724236158933,13.5319038,2587.7,2587.1,4.0521]
[1724236159380,13.5319038,2587.7,2587.2,0.15371691]
[1724236159682,9.6673738,2587.7,2587.1,4.0521]
[1724236160151,9.6673738,2587.7,2587.2,0.15371691]
[1724236160486,9.6673738,2587.7,2587.3,2.4231]
[1724236162983,3.86444,2587.7,2587.3,2.4231]
[1724236164796,7.72897,2587.7,2587.3,2.4231]
[1724236165092,8.915897,2587.7,2587.3,2.4231]
[1724236165563,5.051367,2587.7,2587.3,2.4231]
[1724236165746,8.915877,2587.7,2587.1,4.0005]
[1724236166049,8.915877,2587.7,2587.4,0.15365527]
[1724236166246,3.86459,2587.6,2587.1,2.3195]
[1724236166504,7.0991777,2587.6,2587.5,0.15364046]
[1724236166802,3.2345877,2587.6,2587.1,2.3195]
[1724236166965,3.2345877,2587.6,2587.5,0.15364046]
[1724236167169,3.2345877,2587.6,2587.1,2.3195]
[1724236167364,3.2345877,2587.6,2587.2,0.15368488]
[1724236167583,0.87800277,2587.5,2587.2,0.15368488]
[1724236167757,0.87800277,2587.5,2587.1,2.3195]
[1724236167758,3.86444,2587.7,2587.1,2.3195]
[1724236167957,3.86444,2587.7,2587.2,0.15368488]
[1724236168199,3.86444,2587.7,2587.1,2.3195]
[1724236168416,3.86444,2587.7,2587.3,0.15367007]
[1724236168696,5.043437,2587.7,2587.1,2.3195]
[1724236169064,5.043437,2587.7,2587.2,0.15368488]
[1724236169411,5.043437,2587.7,2587.1,2.3195]
[1724236169611,5.043437,2587.7,2587.3,0.15367007]
[1724236169753,3.86423,2587.9,2587.4,2.3969]
[1724236169955,8.77650206,2588.0,2587.4,2.3969]
[1724236169956,6.40900206,2588.0,2587.4,2.3969]
[1724236170155,5.8029338,2588.0,2587.4,2.3969]
[1724236170550,5.8029338,2588.0,2587.5,0.15358438]
[1724236170954,5.8029338,2588.0,2587.5,2.53458438]
[1724236171151,5.8029338,2588.0,2587.6,2.4165]
[1724236171402,5.8029338,2588.0,2587.7,0.15337855]
[1724236171554,5.8029338,2588.0,2587.6,2.4165]
[1724236174868,3.86384,2588.1,2587.6,2.4165]
[1724236175195,3.86384,2588.1,2587.7,0.15337855]
[1724236176380,7.72776,2588.1,2587.7,0.15337855]
[1724236177331,3.86384,2588.1,2587.7,0.15337855]
[1724236178180,7.72776,2588.1,2587.7,0.15337855]
[1724236178498,3.86407,2588.0,2587.7,0.15337855]
[1724236179368,3.86407,2588.0,2587.5,0.7]
[1724236179490,3.86407,2588.0,2587.8,0.1529072]
[1724236179697,3.86407,2588.0,2587.5,0.7]
[1724236180131,3.86407,2588.0,2587.6,0.15293681]
[1724236182724,3.86407,2588.0,2587.4,2.448]
[1724236182938,3.86407,2588.0,2587.7,0.152922]
[1724236183084,3.86407,2588.0,2587.4,2.448]
[1724236183284,3.86407,2588.0,2587.8,0.1529072]
[1724236183485,3.86407,2588.0,2587.4,2.448]
[1724236183786,7.72812,2588.0,2587.9,0.1528924]
[1724236183985,7.72812,2588.0,2587.2,0.7]
[1724236183986,3.86459,2587.6,2587.2,2.2905]
[1724236184215,3.8648,2587.5,2587.2,2.2905]
[1724236184455,3.86459,2587.6,2587.2,2.2905]
[1724236189072,3.86444,2587.7,2587.2,2.2905]
[1724236193337,3.86444,2587.7,2587.2,2.68765]
[1724236197670,9.6670938,2587.9,2587.2,2.68765]
[1724236198447,9.6670938,2587.9,2587.4,2.3731]
[1724236198650,3.86416,2587.9,2587.4,2.3731]
[1724236198849,3.86416,2587.9,2587.5,0.15311178]
[1724236199297,11.4478338,2588.1,2587.5,0.15311178]
[1724236199298,5.9029338,2588.1,2587.6,2.3731]
[1724236199602,5.9029338,2588.1,2587.8,2.3731]
[1724236199754,3.86339,2588.4,2587.8,2.3731]
[1724236200450,4.0138,2588.6,2587.8,2.3731]
[1724236200451,3.86324,2588.5,2587.8,2.3731]
[1724236200686,3.86324,2588.5,2587.8,2.84851]
[1724236201050,3.8631,2588.6,2587.9,2.381]
[1724236201264,3.0,2588.5,2588.0,2.4484]
[1724236201798,1.15441,2588.5,2588.0,2.4484]
[1724236201951,5.54451,2588.4,2588.0,2.4484]
[1724236202564,3.86354,2588.3,2588.0,2.4484]
[1724236205910,3.86354,2588.3,2587.7,1.681]
[1724236205911,3.86374,2588.2,2587.8,2.4395]
[1724236206508,3.86354,2588.3,2587.8,2.4395]
[1724236207002,5.54441,2588.4,2587.8,2.4395]
[1724236207003,3.86341,2588.4,2587.8,2.4395]
[1724236207153,3.86341,2588.4,2588.0,2.4712]
[1724236207496,7.7269,2588.4,2588.0,2.4712]
[1724236207654,3.86354,2588.3,2588.0,2.4712]
[1724236210707,5.54441,2588.4,2587.8,2.4115]
[1724236210708,3.86376,2588.2,2587.8,2.4115]
[1724236211509,3.86384,2588.1,2587.6,2.9619]
[1724236213558,6.16706,2588.2,2587.6,2.9619]
[1724236213759,3.86376,2588.2,2587.6,2.9619]
[1724236214606,3.86376,2588.2,2587.7,2.4537]
[1724236214795,3.8637,2588.2,2587.9,2.4537]
[1724236217446,3.86388,2588.1,2587.7,2.2831]
[1724236217748,3.86388,2588.1,2588.0,0.14720689]
[1724236217865,9.4085,2588.2,2587.7,2.2831]
[1724236218070,9.40848,2588.2,2587.8,0.29831]
[1724236218481,5.5447,2588.2,2587.8,0.29831]
[1724236218699,3.8637,2588.2,2587.7,2.2831]
[1724236218894,3.8637,2588.2,2587.9,0.14722169]
[1724236219091,7.72747,2588.2,2587.7,2.2831]
[1724236219293,7.72748,2588.2,2588.0,0.14720689]
[1724236219494,7.72748,2588.2,2587.7,2.2831]
[1724236219683,3.8637,2588.2,2588.1,0.14719209]
[1724236219893,3.8637,2588.2,2587.7,2.2831]
[1724236220220,3.8637,2588.2,2588.1,0.14719209]
[1724236220369,3.8637,2588.2,2588.0,2.3338]
[1724236220723,3.86341,2588.4,2588.1,0.14719209]
[1724236220937,3.86316,2588.6,2588.1,0.14719209]
[1724236221466,3.86316,2588.6,2588.2,2.3515]
[1724236221670,3.86316,2588.6,2588.2,2.49852556]
[1724236222515,3.86264,2588.9,2588.3,4.1436]
[1724236222671,3.8628,2588.8,2588.3,4.29061076]
[1724236223314,3.8628,2588.8,2588.3,2.60961076]
[1724236224122,3.86236,2589.1,2588.6,2.4462]
[1724236224347,3.8623,2589.2,2588.6,4.20445535]
[1724236224473,3.86211,2589.3,2588.7,2.59310367]
[1724236224880,5.54299,2589.4,2588.7,2.59310367]
[1724236224881,5.54299,2589.4,2588.7,3.09051404]
[1724236225238,5.54299,2589.4,2588.8,2.397]
[1724236225586,9.40498,2589.4,2588.9,0.1462912]
[1724236226350,3.86167,2589.6,2589.0,4.648]
[1724236226509,7.72337,2589.6,2589.0,2.967]
[1724236226686,7.72337,2589.6,2589.1,0.14586253]
[1724236226888,3.86167,2589.6,2589.1,0.14586253]
[1724236227128,8.277627,2589.6,2589.1,0.14586253]
[1724236228301,4.415937,2589.6,2589.2,2.2604]
[1724236228536,4.415937,2589.6,2589.2,2.40624774]
[1724236230474,8.277617,2589.6,2589.2,2.40624774]
[1724236230624,4.415937,2589.6,2589.2,2.40624774]
[1724236230968,4.415937,2589.6,2589.2,2.2604]
[1724236231174,3.86167,2589.6,2589.2,2.2604]
[1724236231676,3.86167,2589.6,2589.3,0.14583296]
[1724236231973,3.86167,2589.6,2589.2,2.2604]
[1724236232168,3.86147,2589.7,2589.4,0.14581817]
[1724236232332,3.86147,2589.7,2589.3,0.14583296]
[1724236232539,3.86161,2589.6,2589.2,2.2604]
[1724236232734,3.86161,2589.6,2589.4,0.14581817]
[1724236232991,3.86161,2589.6,2589.2,2.2604]
[1724236233123,3.86161,2589.6,2589.5,0.14580339]
[1724236233483,3.86161,2589.6,2589.2,2.2604]
[1724236233769,3.86161,2589.6,2589.5,0.14580339]
[1724236233986,7.72329,2589.6,2589.2,2.2604]
[1724236234159,3.86191,2589.4,2589.2,2.55644]
[1724236234326,3.86175,2589.5,2589.2,2.2604]
[1724236235531,3.86189,2589.4,2589.2,2.2604]
[1724236235728,7.72388,2589.4,2589.2,2.2604]
[1724236236030,3.86189,2589.4,2589.2,2.2604]
[1724236236656,3.86189,2589.4,2588.8,2.2881]
[1724236236875,3.86189,2589.4,2588.9,0.46691]
[1724236237225,1.681,2589.5,2588.8,2.2881]
[1724236237226,3.86257,2589.0,2588.8,2.2881]
[1724236238882,3.86257,2589.0,2588.6,2.4293]
[1724236239045,3.8628,2588.8,2588.4,3.1293]
[1724236239231,3.86273,2588.9,2588.4,3.1293]
[1724236239429,3.86253,2589.0,2588.4,3.1293]
[1724236239430,3.86279,2588.8,2588.5,0.14505745]
[1724236239730,3.86279,2588.8,2588.4,3.1293]
[1724236240290,3.86253,2589.0,2588.4,3.1293]
[1724236240588,3.86253,2589.0,2588.5,0.14505745]
[1724236240960,3.86244,2589.1,2588.5,0.6405932]
[1724236241165,3.86244,2589.1,2588.5,2.3215932]
[1724236242001,3.86251,2589.0,2588.6,2.3367]
[1724236242498,3.86251,2589.0,2588.7,0.14502786]
[1724236242885,1.681,2588.9,2588.7,0.14502786]
[1724236243093,3.86279,2588.8,2588.7,0.14502786]
[1724236243315,3.86279,2588.8,2588.4,2.3177]
[1724236243727,5.54405,2588.7,2588.4,2.3177]
[1724236243878,3.86311,2588.6,2588.5,0.14505745]
[1724236244073,6.20081,2588.6,2588.5,0.14505745]
[1724236244323,3.86345,2588.4,2588.1,2.463]
[1724236245631,3.86345,2588.4,2588.2,0.14510183]
[1724236246124,3.86345,2588.4,2588.1,2.463]
[1724236246474,3.86345,2588.4,2588.2,0.14510183]
[1724236246726,3.86345,2588.4,2588.1,2.463]
[1724236246878,3.86345,2588.4,2588.2,0.14587603]
[1724236247085,3.86345,2588.4,2588.1,2.463]
[1724236247298,3.86362,2588.3,2588.2,0.14587603]
[1724236247486,3.86362,2588.3,2587.9,2.4681]
[1724236247710,3.86378,2588.2,2588.0,0.14590563]
[1724236248344,1.681,2588.1,2588.0,0.14590563]
[1724236248488,3.86399,2588.0,2587.7,2.3299]
[1724236248682,3.86399,2588.0,2587.5,0.7]
[1724236248683,3.86399,2588.0,2587.8,0.14593523]
[1724236248897,3.86399,2588.0,2587.5,3.0984]
[1724236249104,3.86399,2588.0,2587.5,3.70824]
[1724236249316,1.681,2588.1,2587.6,0.14596484]
[1724236249317,5.54484,2588.1,2587.6,0.14596484]
[1724236250543,3.86384,2588.1,2587.6,0.14596484]
[1724236254154,3.87089588,2588.2,2587.6,0.14596484]
[1724236254361,0.00712588,2588.2,2587.7,2.3814]
[1724236254503,0.00712588,2588.2,2587.8,0.14593523]
[1724236255003,0.00712588,2588.2,2587.7,2.3814]
[1724236255434,0.00712588,2588.2,2587.8,0.14593523]
[1724236255761,0.00712588,2588.2,2587.7,2.3814]
[1724236255905,0.00712588,2588.2,2587.8,0.14593523]
[1724236257247,3.87081588,2588.2,2587.8,0.14593523]
[1724236261544,3.87081588,2588.2,2587.7,2.72808205]
[1724236261746,3.87081588,2588.2,2587.8,0.14718734]
[1724236261951,3.87081588,2588.2,2587.7,2.72808205]
[1724236262151,3.87081588,2588.2,2587.8,0.14718734]
[1724236262362,3.87081588,2588.2,2587.7,2.72808205]
[1724236262510,3.87081588,2588.2,2587.8,0.14718734]
[1724236262709,3.87081588,2588.2,2587.8,0.2728082]
[1724236264108,7.73459588,2588.2,2587.8,0.2728082]
[1724236264303,7.72747,2588.2,2587.8,0.2728082]
[1724236264524,7.72746,2588.2,2587.8,0.2728082]
[1724236264735,3.86369,2588.2,2587.8,0.2728082]
[1724236265344,3.86369,2588.2,2587.9,2.2718]
[1724236270333,3.86354,2588.3,2587.9,2.2718]
[1724236271471,4.46910385,2588.6,2587.9,2.2718]
[1724236271472,3.8634,2588.4,2587.9,2.2718]
[1724236272585,1.679,2588.3,2587.9,2.2718]
[1724236272878,3.86391,2588.1,2587.8,0.7]
[1724236273188,3.86391,2588.1,2587.9,0.14717253]
[1724236273533,3.86391,2588.1,2587.8,0.7]
[1724236273883,3.86391,2588.1,2587.9,0.14717253]
[1724236274380,3.86391,2588.1,2587.8,0.7]
[1724236274533,3.86391,2588.1,2587.9,0.1472524]
[1724236274732,3.86391,2588.1,2587.8,0.7]
[1724236275049,3.86391,2588.1,2587.9,0.1472524]
[1724236275372,3.86391,2588.1,2587.8,0.7]
[1724236275543,3.86391,2588.1,2587.9,0.1472524]
[1724236275878,3.86391,2588.1,2587.8,0.7]
[1724236276377,3.86391,2588.1,2587.9,0.1472524]
[1724236276683,3.86391,2588.1,2587.8,0.7]
[1724236277196,3.86391,2588.1,2587.9,0.1472524]
[1724236277531,5.54269,2588.2,2587.8,0.7]
[1724236277729,5.54269,2588.2,2587.9,0.1472524]
[1724236277928,5.54269,2588.2,2588.0,2.49]
[1724236280489,3.86383,2588.1,2588.0,2.49]
[1724236280839,3.86383,2588.1,2588.0,2.6372376]
[1724236283576,3.86383,2588.1,2588.0,0.1472376]
[1724236283746,3.86383,2588.1,2587.8,2.9887]
[1724236283944,3.86383,2588.1,2587.9,0.14730033]
[1724236285040,5.54269,2588.2,2587.9,0.14730033]
[1724236285379,5.54269,2588.2,2587.8,2.9887]
[1724236285699,5.54269,2588.2,2587.9,0.14730033]
[1724236287300,3.86385,2588.1,2587.9,0.14730033]
[1724236291107,2.2668,2588.5,2587.9,0.14730033]
[1724236291108,3.86339,2588.4,2587.9,0.14730033]
[1724236291263,5.54239,2588.4,2588.0,2.3472]
[1724236291467,1.679,2588.4,2588.0,2.66665003]
[1724236291667,3.86328,2588.5,2588.0,2.66665003]
[1724236291971,3.86328,2588.5,2588.1,0.1474145]
[1724236292180,3.86328,2588.5,2588.0,2.66665003]
[1724236292382,3.86328,2588.5,2588.1,0.4140795]
[1724236292593,7.72665,2588.5,2588.1,0.266665]
[1724236292796,0.60590385,2588.6,2588.2,2.3472]
[1724236293006,6.86304,2588.7,2588.2,2.3472]
[1724236293421,6.86304,2588.7,2588.3,0.1472651]
[1724236293911,6.86304,2588.7,2588.2,2.3472]
[1724236294119,6.86304,2588.7,2588.3,0.3313865]
[1724236294318,3.86273,2588.9,2588.3,0.47857972]
[1724236294503,3.86273,2588.9,2588.4,2.3411]
[1724236294817,3.86273,2588.9,2588.6,2.3411]
[1724236295038,7.72547,2588.9,2588.6,2.3411]
[1724236295162,3.86273,2588.9,2588.6,2.3411]
[1724236295363,3.86279,2588.8,2588.7,0.14663091]
[1724236295875,3.86279,2588.8,2588.6,2.3411]
[1724236296409,3.86279,2588.8,2588.7,0.14663091]
[1724236296721,3.86279,2588.8,2588.6,2.3411]
[1724236297018,5.54193,2588.8,2588.7,0.14663091]
[1724236297384,3.86294,2588.7,2588.4,3.0686]
[1724236297581,3.86294,2588.7,2588.5,0.14652477]
[1724236298600,1.679,2588.8,2588.5,0.14652477]
[1724236302239,5.54187,2588.8,2588.5,0.14652477]
[1724236308799,9.40518,2588.6,2588.5,0.13939889]
[1724236308997,3.86345,2588.4,2588.1,0.7]
[1724236309198,3.86345,2588.4,2588.2,0.14621986]
[1724236312300,3.86324,2588.5,2588.2,0.14621986]
[1724236312540,5.5421,2588.6,2588.2,0.14621986]
[1724236312749,3.8631,2588.6,2588.3,2.3533]
[1724236313101,3.8631,2588.6,2588.4,0.14619027]
[1724236313743,3.86296,2588.7,2588.4,0.14619027]
[1724236313928,3.86296,2588.7,2588.3,2.3533]
[1724236314112,3.86265,2588.9,2588.3,2.65863]
[1724236314312,0.60582561,2589.0,2588.3,2.65863]
[1724236314520,0.60582561,2589.0,2588.6,2.2587]
[1724236314750,0.60582561,2589.0,2588.7,2.2587]
[1724236314949,3.86229,2589.2,2588.7,2.2587]
[1724236314950,3.86229,2589.2,2588.7,2.40484588]
[1724236315846,9.4033,2589.3,2588.7,2.71533047]
[1724236316518,9.40327,2589.3,2588.7,2.71533047]
[1724236317357,5.54113,2589.3,2588.8,0.7]
[1724236317669,22.45382989,2589.9,2588.7,2.71533047]
[1724236317670,6.35904,2589.7,2589.2,0.7]
[1724236317824,3.8614,2589.8,2589.3,2.354]
[1724236318025,4.46687216,2589.9,2589.3,2.354]
[1724236318358,0.64847164,2589.8,2589.3,2.354]
[1724236318505,4.46685216,2589.9,2589.3,2.354]
[1724236318711,1.679,2589.8,2589.3,2.354]
[1724236319146,5.5404,2589.8,2589.4,0.14497278]
[1724236319355,3.8614,2589.8,2589.3,2.354]